Cogmind - Beta 12 @@@ ROGUE MODE // 2023.04.18 @ 10:23:36 Player: Mr Goldstein Result: Destroyed by P-60 Hacker with Shock Rifle Performance ------------- Evolutions (0) 0 Regions Visited (3) 600 Robots Destroyed (45) 225 Value Destroyed (1083) 1083 Prototype IDs (27) 540 Alien Tech Used (0) 0 Bonus (-686) -686 TOTAL SCORE: 1762 Bonus ------- Aligned with FarCom 300 Friendly Fire -986 Cogmind --------- Core Integrity 0/250 Matter 288/300 Energy 250/250 System Corruption 3% Temperature Cool (0) Movement Rolling (140) Ox4 Location -10/Exiles Parts ------- > --- POWER (1) -------- Ion Engine > --- PROPULSION (2) --- Wheel Wheel (fused) > --- UTILITY (2) ------ Huge Storage Unit Structural Scanner > --- WEAPON (2) ------- Light Cannon Light Cannon > --- INVENTORY (25) --- Ion Engine Wheel Wheel Heat Sink High-capacity Battery (250) Large Matter Pod (150) Visual Processing Unit Modified TNC Tractor Beam Assault Rifle Assault Rifle Assault Rifle Light Assault Rifle AWS/Gauss XL Autogun Array Light Cannon Light Cannon Light Cannon Grenade Launcher Grenade Launcher Grenade Launcher Peak State ------------ > --- POWER ------------ Ion Engine > --- PROPULSION ------- Wheel Wheel > --- UTILITY ---------- Huge Storage Unit Structural Scanner > --- WEAPON ----------- Light Cannon Light Cannon > --- INVENTORY -------- Ion Engine Wheel Wheel Heat Sink High-capacity Battery Large Matter Pod Visual Processing Unit Modified TNC Tractor Beam Assault Rifle Assault Rifle Assault Rifle Light Assault Rifle AWS/Gauss XL Autogun Array Light Cannon Light Cannon Light Cannon Grenade Launcher Grenade Launcher Grenade Launcher [Rating: 14] Favorites ----------- Power Ion Engine Engine Ion Engine Propulsion Wheel Wheel Wheel Utility Structural Scanner Device Structural Scanner Storage Huge Storage Unit Weapon Light Assault Rifle Energy Gun Small Laser Ballistic Gun Light Assault Rifle Ballistic Cannon Light Cannon Launcher Grenade Launcher Build | -11 -10 -10 -10 ------- Run | Jun Mat Min Exi Slots Evolved . | . . . . Power . | . . . . Propulsion . | . . . . Utility . | . . . . Weapon . | . . . . Parts Attached 29 | 8 19 2 . Power 5 | 2 3 . . Engine 5 | 2 3 . . Core . | . . . . Reactor . | . . . . Propulsion 7 | 2 5 . . Treads . | . . . . Leg . | . . . . Wheel 7 | 2 5 . . Hover . | . . . . Flight . | . . . . Utility 4 | 1 3 . . Device 1 | . 1 . . Storage 3 | 1 2 . . Processor . | . . . . Hackware . | . . . . Protection . | . . . . Artifact . | . . . . Weapon 13 | 3 8 2 . Energy Gun 2 | 2 . . . Energy Cannon . | . . . . Ballistic Gun 6 | 1 5 . . Ballistic Cannon 2 | . . 2 . Launcher 3 | . 3 . . Special Weapon . | . . . . Impact Weapon . | . . . . Slashing Weapon . | . . . . Piercing Weapon . | . . . . Special Melee Weapon . | . . . . Unidentified Prototypes . | . . . . Parts Lost 5 | . 5 . . Power 1 | . 1 . . Propulsion 2 | . 2 . . Utility . | . . . . Weapon 2 | . 2 . . Highest Loss Streak 4 | . 4 . . To Critical Strikes . | . . . . Average Slot Usage (%) 98 | . 97 100 100 Engine 13 | . 13 14 14 Wheel 26 | . 26 28 28 Device 13 | . 13 14 14 Storage 14 | . 14 14 14 Ballistic Gun 19 | . 27 . . Ballistic Cannon 5 | . . 15 28 Launcher 2 | . . 12 . Naked Turns . | . . . . Heaviest Build 92 | 13 92 92 92 Greatest Support 26 | 26 26 20 20 Greatest Overweight (x) 8 | . 8 4 4 Average Overweight (x) 3 | . 3 4 4 Largest Inventory Capacity 25 | 8 25 25 25 Average Capacity 23 | 7 22 25 25 Most Carried 25 | 2 24 23 25 Average Carried 16 | 1 15 21 24 Final Capacity 25 | 8 25 25 25 Final Carried 25 | 2 20 23 25 Class Distribution -------------------- 100% | Mutant Dominant Class ---------------- Mutant | -10/Materials Mutant | -10/Mines Mutant | -10/Exiles Resources | -11 -10 -10 -10 ----------- Run | Jun Mat Min Exi Matter Collected 1160 | 221 732 207 . Remotely . | . . . . Salvage Created 1605 | . 1322 243 40 Parts 95 | . 83 10 2 Haulers Intercepted 2 | . 2 . . Recyclers Shooed 1 | . 1 . . Parts Field Recycled . | . . . . Retrieved Matter . | . . . . Parts Self-Destructed . | . . . . Prevented . | . . . . Kills | -11 -10 -10 -10 ------- Run | Jun Mat Min Exi Combat Hostiles Destroyed 35 | . 27 7 1 Guns 24 | . 24 . . Cannons 3 | . . 2 1 AOE 8 | . 3 5 . Classes Destroyed 7 | . 7 . . Worker 1 | . 1 . . Builder 1 | . 1 . . Hauler 2 | . 2 . . Recycler 2 | . 2 . . Watcher 3 | . 3 . . Swarmer 9 | . 6 3 . Grunt 26 | . 21 4 1 Best Kill Streak 5 | . 3 5 1 Combat Bots Only 5 | . 3 5 1 Max Kills in Single Turn 2 | . 2 2 1 Gunslinging . | . . . . Exploded 2 | . 2 2 . Melee . | . . . . Uniques/NPCs Destroyed 1 | . . 1 . YI-UF0 (-10/Mines) Combat | -11 -10 -10 -10 -------- Run | Jun Mat Min Exi Damage Taken 966 | . 832 56 78 Core 256 | . 217 8 31 Absorbed by Shields . | . . . . Core Remaining (%) 100 | 100 . . . Volleys Fired 120 | . 105 14 1 Largest 2 | . 2 2 2 Hottest 70 | . 40 70 70 Shots Fired 241 | . 210 28 3 Gun 208 | . 208 . . Cannon 23 | . . 20 3 Launcher 10 | . 2 8 . Special . | . . . . Kinetic 231 | . 208 20 3 Thermal . | . . . . Explosive 10 | . 2 8 . Electromagnetic . | . . . . Robot Hit Streak 16 | . 16 10 2 Robot Miss Streak 4 | . 4 2 1 Penetration Max . | . . . . Secondary Targets 1 | . 1 . . Max Gunslinging Chain 1 | . 1 . . Shots Hit Robots 166 | . 148 16 2 Core Hits 84 | . 69 14 1 Critical Kills 1 | . 1 . . Critical Parts Destroyed . | . . . . Critical Strikes 2 | . 1 1 . Destroy 1 | . 1 . . Blast 1 | . . 1 . Melee Attacks . | . . . . Impact . | . . . . Slashing . | . . . . Piercing . | . . . . Sneak Attacks . | . . . . Combat Hostiles . | . . . . Follow-up Attacks . | . . . . Damage Inflicted 2153 | . 1570 548 35 Guns 1399 | . 1399 . . Cannons 309 | . . 274 35 Explosions 434 | . 160 274 . Melee . | . . . . Ramming 11 | . 11 . . Kinetic 1708 | . 1399 274 35 Thermal . | . . . . Explosive 434 | . 160 274 . Electromagnetic . | . . . . Impact . | . . . . Slashing . | . . . . Piercing . | . . . . Highest Corruption 3 | . 2 2 3 Average Corruption 2 | . 2 2 2 Corruption Purged . | . . . . Corruption Blocked . | . . . . Effects 27 | . 15 5 7 Message Errors 10 | . 3 4 3 Matter Fused 3 | . 2 1 . Heat Flow Errors 4 | . 4 . . Parts Fused 1 | . 1 . . Data Loss (minor) 4 | . 1 . 3 Data Loss (major) 1 | . 1 . . Misfires 3 | . 2 . 1 Alerts 1 | . 1 . . Overload Shots . | . . . . Overflow Damage 17 | . 2 15 . Projectiles . | . . . . Explosions 17 | . 2 15 . Melee . | . . . . Knockbacks 6 | . . 6 . Impact . | . . . . Kinetic 6 | . . 6 . Secondary . | . . . . Self-Inflicted Damage 20 | . 5 15 . Shots 1 | . . 1 . Rammed 1 | . 1 . . Targets Rammed 1 | . 1 . . Kicked . | . . . . Crushed . | . . . . Highest Temperature 251 | . 251 36 26 Average Temperature 35 | . 42 17 12 Received Heat Transfer 423 | . 414 9 . Siege Activations . | . . . . Robots Corrupted . | . . . . Combat Hostiles . | . . . . Parts Fried . | . . . . Impact Corruptions . | . . . . Robots Melted . | . . . . Combat Hostiles . | . . . . Parts Melted . | . . . . Heat Transferred . | . . . . Parts Sabotaged . | . . . . Parts Stolen . | . . . . Parts Stripped . | . . . . Power Chain Reactions . | . . . . Missiles Intercepted . | . . . . Alert | -11 -10 -10 -10 ------- Run | Jun Mat Min Exi Peak Influence 295 | . 295 263 . Initial 114 | . . 114 . Average 146 | . 131 232 . Maximum Alert Level 1 | . 1 1 . Low Security (%) 69 | 100 79 20 . Level 1 30 | . 20 79 . Level 2 . | . . . . Level 3 . | . . . . Level 4 . | . . . . Level 5 . | . . . . High Security . | . . . . Max Security . | . . . . Squads Dispatched 9 | . 9 . . Investigation 9 | . 9 . . Extermination . | . . . . Reinforcement . | . . . . Assault . | . . . . Garrison . | . . . . Intercept . | . . . . Searches Triggered . | . . . . Construction Impeded . | . . . . Haulers Reinforced . | . . . . Active Scanning Responses . | . . . . Cargo Convoy Interrupts . | . . . . Stealth | -11 -10 -10 -10 --------- Run | Jun Mat Min Exi Distress Signals . | . . . . Communications Jammed . | . . . . Distress Signals . | . . . . Times Spotted 42 | . 36 4 2 Peak Tracking Total 4 | . 4 3 4 Tactical Retreats 1 | . 1 . . Traps | -11 -10 -10 -10 ------- Run | Jun Mat Min Exi Traps Triggered 3 | . 3 . . Indirectly . | . . . . Trap Hack Attempts . | . . . . Triggered . | . . . . Disarmed . | . . . . Reprogrammed . | . . . . Reused . | . . . . Traps Extracted . | . . . . Installed . | . . . . Triggered . | . . . . Exploded 1 | . . . 1 Machines | -11 -10 -10 -10 ---------- Run | Jun Mat Min Exi Machines Disabled 1 | . . . 1 Max in Single Turn 1 | . . . 1 Machines Repaired . | . . . . Machines Sabotaged . | . . . . Overloaded Fab Kills . | . . . . Hacking | -11 -10 -10 -10 --------- Run | Jun Mat Min Exi Machines Accessed 12 | . 11 . 1 Terminals 8 | . 8 . . Fabricators . | . . . . Repair Stations 1 | . 1 . . Recycling Units 2 | . 2 . . Scanalyzers . | . . . . Garrison Access . | . . . . Total Hacks 31 | . 30 . 1 Successful 21 | . 20 . 1 Failed 10 | . 10 . . Catastrophic 1 | . 1 . . Database Lockouts . | . . . . Manual 20 | . 19 . 1 Terminals 25 | . 25 . . Fabricators . | . . . . Repair Stations 3 | . 3 . . Recycling Units 2 | . 2 . . Scanalyzers . | . . . . Garrison Access . | . . . . Terminal Hacks 8 | . 7 . 1 Robot Analysis 4 | . 4 . . Prototype ID Bank 2 | . 2 . . Hauler Manifests 1 | . 1 . . EX-Prototype ID Bank 1 | . . . 1 Fabricator Hacks . | . . . . Repair Station Hacks 1 | . 1 . . Scan Component 1 | . 1 . . Recycling Unit Hacks . | . . . . Scanalyzer . | . . . . Garrison Access Hacks . | . . . . Unauthorized Hacks 12 | . 12 . . Terminals 10 | . 10 . . Botnet 6 | . 6 . . Search 4 | . 4 . . Fabricators . | . . . . Repair Stations . | . . . . Recycling Units 2 | . 2 . . Tunnel 2 | . 2 . . Scanalyzers . | . . . . Garrison Access . | . . . . Data Cores Recovered . | . . . . Used . | . . . . Hacking Detections 5 | . 5 . . Full Trace Events 2 | . 2 . . Feedback Events . | . . . . Feedback Blocked . | . . . . Robot Schematics Acquired . | . . . . Robots Built . | . . . . Authchips . | . . . . Time . | . . . . Total Robot Build Rating . | . . . . Part Schematics Acquired . | . . . . Parts Built . | . . . . Authchips . | . . . . Time . | . . . . Total Part Build Rating . | . . . . Parts Repaired . | . . . . Time . | . . . . Parts Recycled . | . . . . Recycled Matter . | . . . . Retrieved Matter . | . . . . Retrieved Components . | . . . . Parts Scanalyzed . | . . . . Part Schematics Acquired . | . . . . Parts Damaged . | . . . . Bothacking | -11 -10 -10 -10 ------------ Run | Jun Mat Min Exi Used RIF Installer . | . . . . Robots Hacked . | . . . . Non-combat . | . . . . Combat . | . . . . Robot Hacks Applied . | . . . . Relay Couplers Released . | . . . . Fabnet Peak Effective % . | . . . . Robots Rewired . | . . . . Allies Hacked . | . . . . Hacks Repelled . | . . . . Allies | -11 -10 -10 -10 -------- Run | Jun Mat Min Exi Total Allies . | . . . . Largest Group . | . . . . Highest-Rated Group . | . . . . Highest-Rated Ally . | . . . . Total Orders . | . . . . Ally Attacks . | . . . . Total Damage . | . . . . Kills . | . . . . Allies Corrupted . | . . . . Allies Melted . | . . . . Intel | -11 -10 -10 -10 ------- Run | Jun Mat Min Exi Robot Analysis Total 4 | . 4 . . Derelict Logs Recovered 2 | . . 2 . Drone Launches . | . . . . Drone Recoveries . | . . . . Exploration | -11 -10 -10 -10 ------------- Run | Jun Mat Min Exi Turns Passed 3140 | 54 2243 486 357 Spaces Moved 1770 | 42 1167 312 249 Core 5 | 5 . . . Treads . | . . . . Legs . | . . . . Wheels 1765 | 37 1167 312 249 Hover . | . . . . Flight . | . . . . Fastest Speed 50 | 50 90 140 140 Average Speed 133 | 88 132 140 140 Slowest Speed 200 | 100 200 140 140 Overloaded Moves . | . . . . Propulsion Burnouts . | . . . . Robots Hopped . | . . . . Cave-ins Triggered . | . . . . Exploration Rate (%) 53 | 4 98 62 50 Regions Visited 3 Branch Regions 2 Pre-discovered Areas 3 | . 2 1 . Known Exits Taken . | . . . . Unknown Exits Taken 3 | 1 1 1 . Scrap Searched 1 | . . 1 . Spaces Dug 23 | . 11 12 . Terrain Destroyed 71 | . 24 47 . Melee . | . . . . Projectile . | . . . . AOE 71 | . 24 47 . Terrain Rammed . | . . . . Walls Destroyed . | . . . . Machines Disabled . | . . . . Actions | -11 -10 -10 -10 --------- Run | Jun Mat Min Exi Total 2326 | 54 1682 332 258 Wait 364 | 4 358 2 . Move 1767 | 41 1166 311 249 Hop . | . . . . Pick Up 31 | 1 24 3 3 Fast Attach 9 | 6 3 . . Attach 4 | . 4 . . Detach . | . . . . Swap 16 | 2 12 2 . Drop 14 | . 9 . 5 Fire 120 | . 105 14 1 Melee . | . . . . Ram 1 | . 1 . . Kick . | . . . . Crush . | . . . . Escape Stasis . | . . . . Rewire . | . . . . Trap . | . . . . Miscellaneous . | . . . . Route ------- -11/Junkyard -10/Materials (discovered 5 exits: [*Mat x3] / [*Min x2]) -10/Mines -10/Exiles History --------- Turn | Location | Event 23 | -11/Junkyard | Discovered new exit (range 15) 55 | -11/Junkyard | Entered Materials 96 | -10/Materials | Discovered new exit (range 8) 255 | -10/Materials | Discovered new exit (range 9) 307 | -10/Materials | Build established: Mutant 1036 | -10/Materials | Core integrity fell below 50% 1149 | -10/Materials | Discovered new exit (range 14) 1293 | -10/Materials | Discovered new exit (range 14) 1396 | -10/Materials | Discovered new exit (range 7) 1679 | -10/Materials | Lost 4 parts (1p1n2w) 2034 | -10/Materials | Core integrity fell below 20% 2298 | -10/Materials | Entered Mines 2361 | -10/Mines | Found a hidden stash of uninstalled traps 2378 | -10/Mines | Learned location of Mines (-9) 2408 | -10/Mines | Learned location of 2 exits from Materials 2510 | -10/Mines | YI-UF0 nonchalantly dropped a Grenade Launcher on the ground 2539 | -10/Mines | Destroyed YI-UF0 2777 | -10/Mines | Deemed a non-threat by the Exiles lab entrance 2777 | -10/Mines | Discovered new exit (range 6) 2784 | -10/Mines | Entered Exiles 2821 | -10/Exiles | Met 8R-AWN 2843 | -10/Exiles | Met EX-HEX 2885 | -10/Exiles | Met EX-BIN 2902 | -10/Exiles | Aligned with FarCom system 2903 | -10/Exiles | Given EX-Vault access code 2936 | -10/Exiles | Opened EX-Vault 2948 | -10/Exiles | Found XL Autogun Array 2981 | -10/Exiles | Warned to stay clear of 0b10 Research branches 2995 | -10/Exiles | Exiles lab attacked by MAIN.C 3059 | -10/Exiles | Found Modified TNC 3062 | -10/Exiles | Found AWS/Gauss 3141 | -10/Exiles | Destroyed by P-60 Hacker with Shock Rifle Last Messages --------------- the FarCom signals could be picked up there, but you're welcome to try if you really want to. And if we have to leave here due to unforeseen circumstances, don't worry the FarCom system will continue to maintain contact via our distributed network. EX-BIN: And don't even think about spreading that code around. We're gonna change it right after you leave. Most certainly not to something like 1234 which I did last time as a little joke and some thief managed to sneak in here and steal a few of HEX's prototypes. 02995_ EXILES: Incoming Unaware force detected on approach from Mines. Prepare for evacuation. 03030_ EXILES: Lab perimeter alert, evacuate immediately. 03032_ EX-BIN: "Not cool, MAIN.C, I don't even have my SDF Cannon ready..." 03058_ Dropped Assault Rifle. 03059_ Acquired Modified TNC. 03060_ Dropped Lgt. Assault Rifle. 03060_ Dropped Assault Rifle. 03062_ Acquired AWS/Gauss. 03107_ System corrupted: FCS attempts to trigger Lgt. Cannon. 03107_ System corrupted: Lgt. Cannon misfires. 03107_ G-34 Mercenary destroyed. Map ----- +----------------------------------------------------+ | ???????????????????????????????##" ##?? | | ???????????????????????????????##" ## #### | | ???????????????????????????????##""""""## #### | | ???????????????????????????????###"###### ###" | | ??????????????????????????????? "###### ###" | | ??????????????????????????????????????### ###" | | ??????????????????????????????????????### ###" | | ??????????????????????????????????????##" | | ??????????????????????????????????????##" | | ??????????????????????????????????????##" | | ?????????????????????????####?????????##" | | ?????????????????????????####?????????##" | | ????????????????????????? """???????##" | | ??????????????????????????" """???????### | | ??????????????????????????" ???????### | | ?????????????????????????"" ????????##" " | | ?????????????????????????"" "????????##" " | | ????????????????????????? ""???????###" """ | | ?????????????????????????"" ""??????####" #### | | ???????????? ?######???#### ###########"" #### | | ???????????? ############ ##########"" ###? | | ??????????? """#####X# #"###""""""" #### | | ?????????" """""" " "" ### | | ?????????"# "" """ " ## | | ?????????### " " | | ??????????#### @ ! | | ????????????#### % %= | | ??????????????### ! | | ??????????????#### = % | | ???????????????####" ! % | | ????????????????###""" """""" | | ?????????????????##" ######"" | | ?????????????????#"" ""###########""" | | ??????????????????""" """####??#######"" | | ??????????????????"" t """####???????###"" | | ???????????????????" ""###?????????##"" | | ??????????????????" ###??????????#""" | | ??????????????????"" ?????????????? | | ??????????????????? ????????????? | | ????????????????????? ????????????? | | ??????????????????????? ????????????? | | ????????????????????????????????????????????? | | ????????????????????????????????????????????? "" | | ???????????????????????????????????????????????"" | | ????????????????????????????????????????????????## | | ????????????????????????????????????????????????## | | ?????????????????????????????????????????????????? | | ?????????????????????????????????????????????????? | | ?????????????????????????????????????????????????? | | ?????????????????????????????????????????????????? | +----------------------------------------------------+ Best States ------------- Heat Dissipation 25 Energy Generation 10 Energy Capacity 250 Matter Stores 300 Matter Capacity 300 Sight Range 16 Terrain Scan Density 10 Evasion (%) 42 Item Schematics ----------------- None Robot Schematics ------------------ None Fabricated ------------ Nothing Alien Tech Used ----------------- None Achievements -------------- None Challenges ------------ None Game ------ Seed SensorLinkedRedistributor Manual? 0 Play Time 00:23:51 Cumulative 123.4 hours Start 2023.04.18 @ 09:57:21 End 2023.04.18 @ 10:23:36 Sessions 1 Manual Loads 0 Difficulty Rogue Special Mode None Game No. 351 Rogue 351 Adventurer 0 Explorer 0 Win Type - Total 4 Types 4/0/0/0/0/0/0/0/0 Lore% 60 Gallery% 61 Achievement% 54 Wizard Run 0 Options --------- ASCII 0 Keyboard 0 Movement Mouse Keybinds 0 Fullscreen 1 Font 12/Smallcaps Map View 83x54 Tactical HUD 1 Map Filters NONE Filters NONE Steam 1 RUN: 2ef2902a-81d6-4ef8-b75d-71b9308c3e11